bitfinex/quotes_BTCUSD_20251202
["timestamp","ask_amount","ask_price","bid_price","bid_amount"]
[1764637587945,0.42789668,87230.0,87193.0,0.01603539]
[1764637588110,0.42789668,87230.0,87197.0,0.01146828]
[1764637588312,0.01146552,87218.0,87198.0,0.01856]
[1764637588599,0.42789668,87230.0,87198.0,0.01856]
[1764637588600,0.0114642,87228.0,87199.0,0.06252299]
[1764637588882,0.323,87222.0,87221.0,0.01148408]
[1764637589630,0.24076053,87224.0,87221.0,0.01148408]
[1764637589880,0.01146394,87230.0,87221.0,0.01148408]
[1764637590061,0.01146276,87239.0,87231.0,0.01148408]
[1764637590287,0.22924183,87245.0,87223.0,0.04342]
[1764637590288,0.04587209,87272.0,87240.0,0.01148408]
[1764637590486,0.00999999,87290.0,87239.0,0.04342]
[1764637590487,0.01146118,87251.0,87241.0,0.01856]
[1764637590624,0.43935668,87260.0,87243.0,0.06252299]
[1764637590625,0.42789668,87260.0,87243.0,0.06252299]
[1764637590826,0.01146026,87258.0,87257.0,0.01148408]
[1764637591236,0.01146,87260.0,87257.0,0.09947]
[1764637591434,0.50400865,87311.0,87258.0,0.08108299]
[1764637591661,0.0114575,87279.0,87258.0,0.06252299]
[1764637591863,0.22911823,87292.0,87257.0,0.09947]
[1764637591864,0.01145816,87274.0,87259.0,0.0186]
[1764637592080,0.04587209,87297.0,87259.0,0.11807]
[1764637592081,0.63284515,87270.0,87259.0,0.11807]
[1764637592238,0.04587209,87297.0,87259.0,0.11807]
[1764637592239,0.01145593,87291.0,87267.0,0.06252299]
[1764637592439,0.01145659,87286.0,87267.0,0.06252299]
[1764637592638,0.01145619,87289.0,87268.0,0.09947]
[1764637592927,0.33445619,87289.0,87288.0,0.01148408]
[1764637593103,0.14879,87317.0,87291.0,0.01148408]
[1764637593104,0.63284515,87300.0,87291.0,0.01148408]
[1764637593459,0.01145357,87309.0,87301.0,0.01148408]
[1764637593601,0.01145331,87311.0,87290.0,0.06252299]
[1764637593602,0.01145331,87311.0,87298.0,0.09947]
[1764637593810,0.01145331,87311.0,87301.0,0.01148408]
[1764637593811,0.01017672,87302.0,87301.0,0.01148408]
[1764637594010,0.02163121,87302.0,87301.0,0.01186947]
[1764637594213,0.01017672,87302.0,87301.0,0.09985539]
[1764637594939,0.01017672,87302.0,87301.0,0.11845539]
[1764637595531,0.01017672,87302.0,87301.0,0.00038539]
[1764637595948,0.01017672,87302.0,87301.0,0.01186947]
[1764637596165,0.01017672,87302.0,87301.0,0.10578947]
[1764637596391,0.01017672,87302.0,87301.0,0.16831246]
[1764637596834,0.01017672,87302.0,87301.0,0.20270047]
[1764637597055,0.01017672,87302.0,87301.0,0.11290539]
[1764637597750,0.01017672,87302.0,87301.0,0.12438947]
[1764637597960,0.01017672,87302.0,87301.0,0.00038539]
[1764637597961,0.23926654,87302.0,87301.0,0.00038539]
[1764637598422,0.23926654,87302.0,87301.0,0.09430539]
[1764637598653,0.01017672,87302.0,87301.0,0.09430539]
[1764637598852,0.22899133,87340.0,87301.0,0.09430539]
[1764637598853,0.63228843,87330.0,87310.0,0.06252299]
[1764637599055,0.22899031,87340.0,87319.0,0.01148408]
[1764637599056,0.63228843,87320.0,87319.0,0.01148408]
[1764637599284,0.24043981,87340.0,87319.0,0.01148408]
[1764637599285,0.63228843,87329.0,87326.0,0.01145134]
[1764637599501,0.0205154,87390.0,87319.0,0.04153634]
[1764637599502,0.63228843,87360.0,87339.0,0.04342]
[1764637599716,0.0114457,87369.0,87348.0,0.01148408]
[1764637599949,0.009761,87349.0,87348.0,0.01148408]
[1764637600160,0.009761,87349.0,87340.0,0.01864]
[1764637600161,0.009761,87349.0,87344.0,0.01148408]
[1764637600373,0.22896918,87348.0,87340.0,0.01864]
[1764637600580,0.009761,87349.0,87348.0,0.01148408]
[1764637601222,0.009761,87349.0,87341.0,0.06252299]
[1764637601887,0.009761,87349.0,87341.0,0.07397236]
[1764637602019,0.009761,87349.0,87340.0,0.01902539]
[1764637602020,0.63228843,87370.0,87343.0,0.06252299]
[1764637602362,0.63228843,87353.0,87344.0,0.01864]
[1764637602519,0.22892422,87366.0,87344.0,0.01864]
[1764637602520,0.643734,87370.0,87345.0,0.06252299]
[1764637602720,0.323,87369.0,87347.0,0.01144859]
[1764637602952,0.323,87369.0,87345.0,0.05732094]
[1764637602953,0.63228843,87380.0,87352.0,0.01144793]
[1764637603271,0.01144321,87388.0,87350.0,0.2289616]
[1764637603272,0.63228843,87400.0,87369.0,0.0114457]
[1764637603484,0.01144243,87394.0,87362.0,0.01144662]
[1764637603618,0.63228843,87374.0,87363.0,0.01868]
[1764637603838,0.01144204,87397.0,87364.0,0.03008636]
[1764637604217,0.01144204,87397.0,87350.0,0.88125234]
[1764637604218,0.01144321,87388.0,87356.0,0.01144741]
[1764637604515,0.323,87389.0,87370.0,0.06252299]
[1764637604713,0.00051543,87390.0,87389.0,0.01140918]
[1764637604870,0.00051543,87390.0,87389.0,0.01864]
[1764637605069,0.00327157,87390.0,87389.0,0.03004918]
[1764637605284,11.10559881,87500.0,87403.0,1.39952509]
[1764637605488,11.10559881,87500.0,87392.0,0.01144269]
[1764637605489,0.01143131,87479.0,87460.0,0.00999999]
[1764637605867,0.01143209,87473.0,87470.0,0.00980007]
[1764637606076,0.00643209,87473.0,87461.0,0.01868]
[1764637606282,0.01143249,87470.0,87462.0,0.01140918]
[1764637606493,0.01143249,87470.0,87448.0,0.04516]
[1764637606494,0.01143405,87458.0,87448.0,0.04516]
[1764637606704,0.01143327,87464.0,87454.0,0.0114952]
[1764637606913,0.01143327,87464.0,87449.0,0.01868]
[1764637606914,0.01143392,87459.0,87457.0,0.0114952]
[1764637607086,0.01143405,87458.0,87449.0,0.01868]
[1764637607302,0.01143392,87459.0,87449.0,0.01868]
[1764637607303,0.01143327,87464.0,87450.0,0.04516]
[1764637607540,0.0938,87496.0,87461.0,0.0114952]
[1764637607746,0.01143053,87485.0,87456.0,0.04516]
[1764637607964,0.22868642,87456.0,87448.0,0.00038584]
[1764637608174,0.22868642,87456.0,87413.0,0.01143994]
[1764637608175,0.01143719,87434.0,87421.0,0.04516]
[1764637608382,0.01143719,87434.0,87421.0,0.04554647]
[1764637608383,0.01143811,87427.0,87421.0,0.04554647]
[1764637608586,0.323,87429.0,87421.0,0.00038647]
[1764637608587,0.33443785,87429.0,87421.0,0.00038647]
[1764637608786,0.0114385,87424.0,87421.0,0.00038647]
[1764637608994,0.323,87429.0,87421.0,0.00038647]
[1764637609151,0.22880153,87412.0,87402.0,0.01872]
[1764637609361,0.00038871,87412.0,87402.0,0.0302152]
[1764637609562,0.00038871,87412.0,87389.0,0.04516]
[1764637609563,0.323,87400.0,87389.0,0.04516]
[1764637609722,1.0576907,87400.0,87391.0,0.0114952]
[1764637609924,0.00038871,87412.0,87389.0,0.04516]
[1764637610137,0.00038871,87412.0,87390.0,0.01144295]
[1764637610542,0.00038871,87412.0,87391.0,0.04516]
[1764637610789,0.00038871,87412.0,87396.0,0.01144217]
[1764637610942,0.00038871,87412.0,87407.0,0.0114952]
[1764637611362,0.00038871,87412.0,87408.0,0.04516]
[1764637611583,0.00038871,87412.0,87411.0,0.0114952]
[1764637611776,0.00038871,87412.0,87408.0,0.04516]
[1764637611777,1.0576907,87440.0,87408.0,0.04516]
[1764637611778,0.01143484,87452.0,87420.0,0.01143902]
[1764637611999,0.74612449,87460.0,87421.0,0.01872]
[1764637612246,0.01143419,87457.0,87454.0,0.0114952]
[1764637612415,0.01143419,87457.0,87422.0,0.27354536]
[1764637612416,0.01143523,87449.0,87439.0,0.01872]
[1764637612638,0.01143562,87446.0,87439.0,0.01872]
[1764637612827,0.22874135,87435.0,87433.0,0.0114952]
[1764637613032,0.01144138,87402.0,87389.0,0.04516]
[1764637613206,0.7346907,87420.0,87390.0,0.06349]
[1764637613420,0.31989162,87419.0,87393.0,0.01144256]
[1764637613618,0.31989162,87419.0,87414.0,0.0114952]
[1764637613828,0.01143759,87431.0,87407.0,0.01872]
[1764637613829,0.01143798,87428.0,87407.0,0.01872]
[1764637614002,0.0114385,87424.0,87421.0,0.0114952]
[1764637614206,0.01143811,87427.0,87421.0,0.0114952]
[1764637614606,0.01143889,87421.0,87416.0,0.0114952]
[1764637614899,0.7346907,87430.0,87407.0,0.01872]
[1764637615261,0.01143876,87422.0,87421.0,0.0114952]
[1764637615476,2.0,87438.0,87423.0,0.0114952]
[1764637615684,0.01143719,87434.0,87408.0,0.04477]
[1764637615834,0.01143562,87446.0,87417.0,0.01143942]
[1764637616045,0.01143562,87446.0,87440.0,0.0114952]
[1764637616243,0.01143772,87430.0,87423.0,0.01872]
[1764637616447,0.24020313,87426.0,87423.0,0.01872]
[1764637616668,0.00106392,87424.0,87423.0,0.01872]
[1764637616988,0.01143916,87419.0,87411.0,0.01872]
[1764637617183,0.01143876,87422.0,87411.0,0.01876898]
[1764637617414,0.22875696,87430.0,87411.0,0.01876898]
[1764637617619,0.22875786,87429.0,87411.0,0.01876898]
[1764637617830,0.01143889,87421.0,87411.0,0.01876898]
[1764637617984,0.22879991,87413.0,87411.0,0.01876898]
[1764637618186,0.22879991,87413.0,87411.0,4.898e-05]
[1764637618187,0.34702397,87412.0,87411.0,4.898e-05]
[1764637618396,0.4168,87412.0,87411.0,4.898e-05]
[1764637618603,0.323,87412.0,87411.0,4.898e-05]
[1764637619183,0.323,87413.0,87411.0,4.898e-05]
[1764637619529,0.36847362,87412.0,87411.0,4.898e-05]
[1764637619721,0.27467362,87412.0,87411.0,4.898e-05]
[1764637619958,0.97619032,87421.0,87411.0,4.898e-05]
[1764637619959,0.04536,87425.0,87411.0,4.898e-05]
[1764637620088,0.01143785,87429.0,87411.0,4.898e-05]
[1764637620294,0.01143562,87446.0,87418.0,0.01143929]
[1764637620535,0.2287066,87449.0,87412.0,0.04477]
[1764637620536,0.01143497,87451.0,87419.0,0.01872]
[1764637620738,0.0938,87461.0,87434.0,0.0114952]
[1764637620739,0.01143667,87438.0,87434.0,0.0114952]
[1764637620896,0.01143667,87438.0,87419.0,0.01872]
[1764637621104,0.22871428,87446.0,87419.0,0.01872]
[1764637621105,2.0,87499.0,87422.0,1.05]
[1764637621306,11.0018563,87500.0,87458.0,0.01143405]
[1764637621516,11.0018563,87500.0,87457.0,0.22868381]
[1764637621517,0.01142948,87493.0,87459.0,0.01872]
[1764637621721,0.01142922,87495.0,87459.0,0.01872]
[1764637621722,0.22858596,87495.0,87459.0,0.01872]
[1764637621970,11.73782749,87500.0,87445.0,0.01023505]
[1764637621971,0.01143222,87472.0,87445.0,0.01023505]
[1764637622138,0.01143327,87464.0,87446.0,0.06349]
[1764637622340,0.01143536,87448.0,87445.0,0.0114952]
[1764637622568,0.24013996,87449.0,87446.0,4.898e-05]
[1764637622766,0.55170996,87447.0,87446.0,4.898e-05]
[1764637623141,0.64550996,87447.0,87446.0,4.898e-05]
[1764637623343,0.64550996,87447.0,87395.0,0.25829348]
[1764637623344,0.01144007,87412.0,87392.0,0.04477]
[1764637623595,0.01144217,87396.0,87392.0,0.00038871]
[1764637623793,0.24028834,87395.0,87392.0,0.00038871]
[1764637623995,0.24026896,87403.0,87392.0,0.00038871]
[1764637624261,0.22884933,87394.0,87392.0,0.00038871]
[1764637624871,0.0114423,87395.0,87392.0,0.00038871]
[1764637625075,0.2402895,87395.0,87392.0,0.00038871]
[1764637625507,0.01144151,87401.0,87394.0,0.0114952]
[1764637625720,2.0,87436.0,87400.0,0.01144164]
[1764637625921,2.0,87436.0,87393.0,0.06354]
[1764637625922,0.01143706,87435.0,87408.0,0.24025177]
[1764637626124,0.0114368,87437.0,87409.0,0.04482]
[1764637626343,0.01143745,87432.0,87409.0,0.04482]
[1764637626551,0.01143889,87421.0,87410.0,0.01872]
[1764637626759,0.01143889,87421.0,87395.0,0.05154497]
[1764637626760,0.01143929,87418.0,87411.0,0.01872]
[1764637626963,0.01143968,87415.0,87414.0,0.0114952]
[1764637627173,0.22875057,87432.0,87417.0,0.0114952]
[1764637627399,0.01143798,87428.0,87411.0,0.01872]
[1764637627617,0.01143432,87456.0,87425.0,0.01143837]
[1764637627777,11.01185629,87500.0,87412.0,0.04482]
[1764637627778,0.22869821,87452.0,87418.0,0.02944785]
[1764637627997,0.22869821,87452.0,87413.0,0.05038178]
[1764637627998,0.0017519,87446.0,87423.0,0.22877146]
[1764637628154,0.0017519,87446.0,87422.0,0.01143876]
[1764637628155,0.01143523,87449.0,87440.0,0.0114952]
[1764637628338,0.01143719,87434.0,87426.0,0.02944785]
[1764637628548,0.01143719,87434.0,87407.0,0.08020534]
[1764637628549,0.22878059,87420.0,87418.0,0.01872]
[1764637628757,0.24021687,87421.0,87418.0,0.01876904]
[1764637628988,0.24021687,87421.0,87418.0,4.904e-05]
[1764637628989,0.22878321,87419.0,87418.0,4.904e-05]
[1764637629184,0.55178321,87419.0,87418.0,4.904e-05]
[1764637629390,0.01143719,87434.0,87418.0,4.904e-05]
[1764637629621,0.01143719,87434.0,87419.0,0.01036302]
[1764637629622,0.323,87434.0,87419.0,0.01036302]
[1764637629838,0.323,87436.0,87420.0,0.01036302]
[1764637629999,0.323,87434.0,87421.0,0.01036302]
[1764637630222,2.0,87458.0,87434.0,0.22874265]
[1764637630370,2.0,87458.0,87422.0,0.01036414]
[1764637630371,0.0114351,87450.0,87435.0,0.01036414]
[1764637630577,0.73597119,87450.0,87436.0,0.01036414]
[1764637630783,0.73597119,87450.0,87437.0,0.01036414]
[1764637630784,0.01143562,87446.0,87437.0,0.01036414]
[1764637630987,0.01143562,87446.0,87433.0,0.01872]
[1764637630988,0.01143602,87443.0,87433.0,0.01872]
[1764637631205,0.01143575,87445.0,87433.0,0.01872]
[1764637631206,0.01143471,87453.0,87434.0,0.01037148]
[1764637631407,0.74740498,87460.0,87441.0,0.0114952]
[1764637631408,0.01143497,87451.0,87441.0,0.0114952]
[1764637631613,0.34294379,87478.0,87433.0,0.01872]
[1764637631614,0.0114317,87476.0,87444.0,0.01143589]
[1764637631841,0.01143249,87470.0,87465.0,0.0114952]
[1764637631996,0.01143379,87460.0,87454.0,0.01872]
[1764637632199,0.01143327,87464.0,87455.0,0.01037344]
[1764637632582,0.01143366,87461.0,87456.0,0.01037344]
[1764637632814,0.24011415,87459.0,87445.0,0.02944785]
[1764637633005,0.01143732,87433.0,87430.0,0.02944785]
[1764637633200,2.0,87440.0,87417.0,0.02944785]
[1764637633201,0.01143902,87420.0,87417.0,0.02944785]
[1764637633404,0.01143902,87420.0,87418.0,0.01039844]
[1764637633554,0.2402133,87423.0,87417.0,4.904e-05]
[1764637633555,0.01143863,87423.0,87417.0,4.904e-05]
[1764637633783,0.01143811,87427.0,87417.0,4.904e-05]
[1764637633959,0.55178583,87418.0,87417.0,4.904e-05]
[1764637634171,0.01143811,87427.0,87417.0,4.904e-05]
[1764637634442,0.33443759,87431.0,87417.0,4.904e-05]
[1764637634558,0.00999998,87480.0,87428.0,0.01143798]
[1764637634765,0.01143183,87475.0,87450.0,0.22869958]
[1764637635014,0.01143157,87477.0,87470.0,0.0114952]
[1764637635213,0.01143196,87474.0,87470.0,0.0114952]
[1764637635453,0.01143209,87473.0,87470.0,0.0114952]
[1764637635657,0.22867596,87460.0,87451.0,0.02944785]
[1764637635854,0.01143405,87458.0,87453.0,0.0114952]
[1764637636053,0.24012857,87454.0,87451.0,4.904e-05]
[1764637636271,0.55169688,87452.0,87451.0,4.904e-05]
[1764637636474,0.22876709,87426.0,87421.0,0.02944785]
[1764637636707,0.22876709,87426.0,87401.0,0.08020534]
[1764637636708,0.22881462,87407.0,87406.0,0.02944785]
[1764637636913,0.22878583,87418.0,87406.0,0.02944785]
[1764637636914,0.323,87438.0,87410.0,0.01144033]
[1764637637092,0.35301487,87460.0,87419.0,0.02993905]
[1764637637093,0.33443785,87429.0,87419.0,0.02993905]
[1764637637322,0.0114402,87411.0,87406.0,5.348e-05]
[1764637637635,0.01144046,87409.0,87406.0,5.348e-05]
[1764637637828,0.01143994,87413.0,87406.0,5.348e-05]
[1764637638022,0.01144046,87409.0,87406.0,5.348e-05]
[1764637638424,0.01144007,87412.0,87406.0,5.348e-05]
[1764637638657,0.2288121,87408.0,87406.0,5.348e-05]
[1764637639253,0.09667,87407.0,87406.0,5.348e-05]
[1764637639475,0.41967,87407.0,87406.0,5.348e-05]
[1764637639678,0.51180336,87407.0,87406.0,5.348e-05]
[1764637639800,2.41967,87407.0,87406.0,5.348e-05]
[1764637640008,0.2288121,87408.0,87406.0,5.348e-05]
[1764637640258,0.01143876,87422.0,87406.0,5.348e-05]
[1764637640455,0.09667,87438.0,87406.0,5.348e-05]
[1764637640456,0.01143837,87425.0,87406.0,5.348e-05]
[1764637640659,0.01143876,87422.0,87406.0,5.348e-05]
[1764637640995,0.01143863,87423.0,87419.0,0.0114952]
[1764637641122,0.24020766,87425.0,87410.0,0.01872]
[1764637641123,0.01143916,87419.0,87410.0,0.01872]
[1764637641480,0.01143916,87419.0,87393.0,0.01144256]
[1764637641481,0.22885128,87393.0,87392.0,4.97265776]
[1764637641618,0.01144151,87401.0,87392.0,4.97304647]
[1764637641824,0.22884951,87394.0,87392.0,4.97304647]
[1764637642020,0.0114423,87395.0,87392.0,4.97304647]
[1764637642224,0.01144204,87397.0,87392.0,4.97304647]
[1764637642479,0.01144217,87396.0,87392.0,4.97304647]
[1764637642689,0.24028706,87396.0,87395.0,0.0114952]
[1764637642895,0.24028706,87396.0,87392.0,4.97304647]
[1764637642896,0.24028834,87395.0,87392.0,4.97304647]
[1764637643100,0.22885128,87393.0,87392.0,4.97304647]
[1764637643340,0.27472337,87393.0,87392.0,4.97304647]
[1764637643550,2.80961933,87393.0,87392.0,4.97304647]
[1764637643859,2.71315337,87393.0,87392.0,4.12575779]
[1764637644135,0.77567636,87393.0,87392.0,3.02294896]
[1764637644439,2.77567636,87393.0,87392.0,1.92396436]
[1764637644640,2.77567636,87393.0,87392.0,1.78076787]
[1764637645041,2.77567636,87393.0,87392.0,1.35824442]
[1764637645242,2.77567636,87393.0,87392.0,1.06130094]
[1764637645385,2.77567636,87393.0,87392.0,0.93363021]
[1764637645810,2.64852128,87393.0,87392.0,0.93363021]
[1764637646198,2.82627023,87393.0,87392.0,0.12695263]
[1764637646399,0.22897704,87345.0,87344.0,0.01876]
[1764637646639,0.00038832,87345.0,87344.0,0.01876]
[1764637647055,0.00038832,87345.0,87344.0,0.1293752]
[1764637647464,0.00038832,87345.0,87344.0,0.01876]
[1764637647684,0.01183717,87345.0,87334.0,0.04487]
[1764637647915,0.01183717,87345.0,87328.0,0.09912]
[1764637647916,0.01145042,87333.0,87318.0,0.03333]
[1764637648086,0.01145042,87333.0,87320.0,0.0114952]
[1764637648087,0.01145121,87327.0,87320.0,0.0114952]
[1764637648292,0.0114516,87324.0,87320.0,0.0114952]
[1764637648498,0.01145081,87330.0,87321.0,0.01876]
[1764637648709,0.01183717,87345.0,87329.0,0.04487]
[1764637648928,0.01183717,87345.0,87318.0,0.03333]
[1764637648929,0.01145094,87329.0,87318.0,0.03333]
[1764637649186,0.01145094,87329.0,87304.0,0.24053804]
[1764637649187,0.0114516,87324.0,87309.0,0.03333]
[1764637649342,0.0114516,87324.0,87300.0,0.0004]
[1764637649343,0.01145317,87312.0,87310.0,0.01876]
[1764637649521,0.01145317,87312.0,87300.0,0.0004]
[1764637649522,0.01145357,87309.0,87300.0,0.0004]
[1764637650150,0.0114537,87308.0,87300.0,0.0118952]
[1764637650352,0.0114537,87308.0,87300.0,0.0004]
[1764637650353,0.01145409,87305.0,87300.0,0.0004]
[1764637650592,0.22908982,87302.0,87300.0,0.0004]
[1764637650793,0.323,87301.0,87300.0,0.0004]
[1764637651083,2.41909,87301.0,87300.0,0.0004]
[1764637651293,0.01145856,87271.0,87265.0,0.0044006]
[1764637651511,0.04568,87266.0,87265.0,0.0044006]
[1764637651725,0.04568,87266.0,87223.0,0.09903]
[1764637651726,0.01146276,87239.0,87223.0,0.04487]
[1764637651927,0.01146131,87250.0,87229.0,0.00109847]
[1764637652130,0.323,87249.0,87229.0,0.00109847]
[1764637652281,0.01146197,87245.0,87223.0,0.01876]
[1764637652492,0.22926025,87238.0,87223.0,0.01876]
[1764637652701,0.01146315,87236.0,87220.0,0.04487]
[1764637653021,0.0114625,87241.0,87223.0,0.01876]
[1764637653022,0.01146263,87240.0,87223.0,0.01876]
[1764637653208,0.01146263,87240.0,87202.0,0.01146762]
[1764637653209,0.22928897,87227.0,87202.0,0.01146762]
[1764637653408,0.22928897,87227.0,87198.0,0.2293617]
[1764637653409,0.323,87225.0,87206.0,0.01876]
[1764637654095,0.01146394,87230.0,87206.0,0.01876]
[1764637654096,0.22923385,87248.0,87221.0,0.2293024]
[1764637654309,0.01146302,87237.0,87211.0,0.22932679]
[1764637654485,0.01146236,87242.0,87220.0,0.04487]
[1764637654695,0.323,87243.0,87230.0,0.0114952]
[1764637654842,0.01146263,87240.0,87230.0,0.0114952]
[1764637655062,0.01146263,87240.0,87224.0,4.008e-05]
[1764637655063,0.00038759,87245.0,87242.0,0.01146236]
[1764637655276,0.00038759,87245.0,87235.0,0.01146328]
[1764637655277,0.00038759,87245.0,87244.0,0.0114952]
[1764637655527,0.00038759,87245.0,87244.0,0.24073732]
[1764637655731,0.01145764,87278.0,87258.0,0.01146026]
[1764637655907,0.22911857,87292.0,87269.0,0.01145882]
[1764637656237,0.01145724,87281.0,87263.0,0.01145961]
[1764637656376,0.01145724,87281.0,87262.0,0.01145974]
[1764637656377,0.01145672,87285.0,87265.0,0.02295454]
[1764637656562,0.01145672,87285.0,87259.0,0.1092]
[1764637656563,0.01145816,87274.0,87259.0,0.1092]
[1764637656765,0.01145737,87280.0,87259.0,0.12066013]
[1764637657022,0.0114575,87279.0,87266.0,0.01145921]
[1764637657171,0.01145685,87284.0,87267.0,0.01145908]
[1764637657368,0.01145567,87293.0,87273.0,0.01145829]
[1764637657593,0.01145645,87287.0,87274.0,0.01876]
[1764637657794,0.01145685,87284.0,87274.0,0.0302552]
[1764637658016,0.0114558,87292.0,87274.0,0.33836219]
[1764637658224,0.01145777,87277.0,87258.0,0.09049349]
[1764637658421,0.04587209,87303.0,87280.0,0.22914561]
[1764637658652,0.01145554,87294.0,87281.0,0.01876]
[1764637658895,0.55212131,87290.0,87286.0,0.0114952]
[1764637659043,0.0114575,87279.0,87271.0,0.01876]
[1764637659239,0.01145672,87285.0,87271.0,0.01876]
[1764637659443,0.0114558,87292.0,87276.0,0.22915691]
[1764637659653,0.0114558,87292.0,87275.0,0.01145803]
[1764637659857,0.01145724,87281.0,87271.0,0.01876]
[1764637660055,0.01145645,87287.0,87271.0,0.01881349]
[1764637660317,0.01145645,87287.0,87279.0,0.0114952]
[1764637660318,0.01145685,87284.0,87279.0,0.0114952]
[1764637660550,0.01145737,87280.0,87271.0,5.349e-05]
[1764637660783,0.2406146,87277.0,87272.0,0.01876]
[1764637660991,0.01145816,87274.0,87273.0,0.01876]
[1764637661462,0.01145816,87274.0,87271.0,5.349e-05]
[1764637661660,0.22916595,87273.0,87271.0,5.349e-05]
[1764637662689,0.24060769,87279.0,87271.0,5.349e-05]
[1764637662890,0.01145816,87274.0,87271.0,5.349e-05]
[1764637663119,0.22915844,87276.0,87271.0,5.349e-05]
[1764637663120,0.323,87281.0,87271.0,5.349e-05]
[1764637663267,0.24062375,87274.0,87271.0,5.349e-05]
[1764637663680,0.07252297,87320.0,87272.0,0.01876]
[1764637663883,0.01145488,87299.0,87286.0,0.0114952]
[1764637664090,0.33445488,87299.0,87287.0,0.01876]
[1764637664271,0.01145698,87283.0,87260.0,0.09044]
[1764637664483,0.24058862,87286.0,87272.0,0.01876]
[1764637664852,0.22912962,87287.0,87272.0,0.01876]
[1764637664853,0.01145711,87282.0,87275.0,0.0114952]
[1764637664968,0.01145816,87274.0,87256.0,0.01146052]
[1764637665173,0.01145816,87274.0,87250.0,0.01146131]
[1764637665174,0.22916595,87273.0,87272.0,0.01876]
[1764637665369,0.01145764,87278.0,87272.0,0.01876]
[1764637665594,0.01145803,87275.0,87272.0,0.0302552]
[1764637665825,0.01145764,87278.0,87272.0,0.0302552]
[1764637666154,0.24061872,87275.0,87272.0,0.0114952]
[1764637666309,0.01145777,87277.0,87273.0,0.01876]
[1764637666507,0.01145698,87283.0,87273.0,0.01876]
[1764637666861,0.01145724,87281.0,87278.0,0.0114952]
[1764637667065,0.24060228,87281.0,87278.0,0.0114952]
[1764637667264,0.01145777,87277.0,87273.0,0.01876]
[1764637667473,0.323,87286.0,87276.0,0.0114952]
[1764637667591,0.0114558,87292.0,87276.0,0.0114579]
[1764637667794,0.01145645,87287.0,87275.0,0.0114952]
[1764637667998,0.01145659,87286.0,87274.0,0.09044]
[1764637668208,0.01145659,87286.0,87275.0,0.01872]
[1764637668410,0.323,87298.0,87282.0,0.01145711]
[1764637668611,0.01145409,87305.0,87289.0,0.24057885]
[1764637668862,0.01145527,87296.0,87290.0,0.01872]
[1764637669088,0.24055062,87300.0,87294.0,0.0114952]
[1764637669280,0.01145501,87298.0,87294.0,0.0114952]
[1764637669504,0.323,87305.0,87294.0,0.0114952]
[1764637669505,0.323,87305.0,87294.0,0.2406051]
[1764637669681,0.3344537,87308.0,87294.0,0.0114952]
[1764637670016,0.01145396,87306.0,87294.0,0.0114952]
[1764637670165,0.01145396,87306.0,87290.0,0.03017606]
[1764637670166,0.01145331,87311.0,87303.0,0.0114952]
[1764637670370,0.01145396,87306.0,87304.0,0.01872]
[1764637670570,2.0,87320.0,87291.0,0.0114952]
[1764637670774,0.01145501,87298.0,87292.0,0.01872]
[1764637671137,0.01145449,87302.0,87292.0,0.01872]
[1764637671337,0.01145449,87302.0,87292.0,0.01877349]
[1764637671535,0.01145488,87299.0,87292.0,0.01877349]
[1764637671734,0.24056407,87295.0,87292.0,5.349e-05]
[1764637671944,0.24056407,87295.0,87292.0,0.01877349]
[1764637672610,0.24056407,87295.0,87292.0,5.349e-05]
[1764637672803,0.22911344,87293.0,87292.0,5.349e-05]
[1764637672968,2.62428312,87293.0,87292.0,5.349e-05]
[1764637673168,2.72425312,87293.0,87292.0,5.349e-05]
[1764637673520,2.72425312,87293.0,87249.0,0.01146144]
[1764637673521,0.22920534,87258.0,87257.0,0.00025101]
[1764637673654,0.22920534,87258.0,87257.0,0.0003045]
[1764637674743,0.65217534,87258.0,87257.0,0.0003045]
[1764637675526,0.55220534,87258.0,87257.0,0.0003045]
[1764637675779,0.2406621,87260.0,87257.0,0.0003045]
[1764637678245,0.04587209,87258.0,87257.0,0.0003045]
[1764637678665,0.14584209,87258.0,87257.0,0.0003045]
[1764637679099,0.22920534,87258.0,87257.0,0.0003045]
[1764637679302,0.47839989,87258.0,87257.0,0.0003045]
[1764637679506,2.69804743,87258.0,87257.0,0.0003045]
[1764637679709,2.59807743,87258.0,87257.0,0.0003045]
[1764637679907,2.69804743,87258.0,87257.0,0.0003045]
[1764637680524,0.76057042,87258.0,87257.0,0.0003045]
[1764637680755,0.61474672,87251.0,87250.0,0.30468]
[1764637680949,0.55229206,87225.0,87224.0,4.008e-05]
[1764637681162,0.55229206,87225.0,87155.0,0.08020534]
[1764637681163,0.22939084,87171.0,87155.0,0.08020534]
[1764637681361,0.22939084,87171.0,87125.0,4.008e-05]
[1764637681362,0.323,87169.0,87146.0,0.01147499]
[1764637681600,0.323,87169.0,87157.0,0.04972]
[1764637681750,0.323,87169.0,87168.0,0.00289553]
[1764637681932,2.43502299,87169.0,87168.0,0.00289553]
[1764637682532,2.43502299,87169.0,87110.0,0.0004]
[1764637682533,0.61500974,87151.0,87150.0,1e-08]
[1764637682835,0.61500974,87151.0,87110.0,0.0004]
[1764637682836,0.5525526,87126.0,87110.0,0.0004]
[1764637683224,0.6020526,87126.0,87110.0,0.0004]
[1764637683862,0.01147697,87131.0,87110.0,0.0004]
[1764637683863,0.01147578,87140.0,87125.0,0.09048008]
[1764637684063,0.0003867,87126.0,87125.0,0.10932008]
[1764637684610,0.01147328,87159.0,87140.0,0.01147578]
[1764637684815,0.04587209,87181.0,87140.0,0.01147578]
[1764637684816,0.01147407,87153.0,87141.0,0.01884]
[1764637685026,0.01147407,87153.0,87141.0,0.09044]
[1764637685239,0.22951308,87141.0,87140.0,7.58e-05]
[1764637685460,2.55251308,87141.0,87140.0,7.58e-05]
[1764637686077,0.55251308,87141.0,87140.0,7.58e-05]
[1764637686282,2.60239308,87141.0,87140.0,7.58e-05]
[1764637686703,2.66491607,87141.0,87140.0,7.58e-05]
[1764637688415,2.55251308,87141.0,87140.0,7.58e-05]
[1764637688615,0.01147486,87147.0,87140.0,7.58e-05]
[1764637688616,0.01147381,87155.0,87140.0,0.0991658]
[1764637688849,0.22950255,87145.0,87140.0,7.58e-05]
[1764637689021,0.24098548,87143.0,87140.0,7.58e-05]
[1764637689433,2.55251308,87141.0,87140.0,7.58e-05]
[1764637689751,0.01147499,87146.0,87140.0,7.58e-05]
[1764637689952,0.24096798,87149.0,87140.0,7.58e-05]
[1764637689953,0.01147394,87154.0,87141.0,0.01888]
[1764637690154,0.01147486,87147.0,87141.0,0.01888]
[1764637690355,0.01147407,87153.0,87141.0,0.01888]
[1764637690356,0.45873907,87196.0,87142.0,0.15921552]
[1764637690552,0.01147328,87159.0,87145.0,0.01147512]
[1764637690881,0.01147539,87143.0,87140.0,7.58e-05]
[1764637691051,0.22951223,87142.0,87140.0,7.58e-05]
[1764637691233,0.22951045,87142.0,87140.0,7.58e-05]
[1764637692140,0.01147539,87143.0,87140.0,7.58e-05]